[Event "Titled Tuesday Blitz February 21 Early 2023"]
[White "Rego, Pedro Filipe"]
[Black "Larina, Maria"]
[WhiteFideId "1904310"]
[BlackFideId "24113182"]
[WhiteElo "2312"]
[BlackElo "1948"]
[Result "1-0"]
[Round "07"]
[TimeControl "180+2"]
[Date "2023.02.21"]
[WhiteClock "0:00:08"]
[BlackClock "0:00:04"]

1. e4 {[%clk 0:03:00]}  c6 {[%clk 0:02:59]} 2. d4 {[%clk 0:02:59]}  d5 {[%clk 0:02:59]} 3. e5 {[%clk 0:02:58]}  c5 {[%clk 0:02:58]} 4. Nf3 {[%clk 0:02:53]}  Nc6 {[%clk 0:02:58]} 5. dxc5 {[%clk 0:02:50]}  Bg4 {[%clk 0:02:50]} 6. Bb5 {[%clk 0:02:41]}  e6 {[%clk 0:02:47]} 7. b4 {[%clk 0:02:36]}  Qc7 {[%clk 0:02:14]} 8. Bf4 {[%clk 0:02:19]}  Ne7 {[%clk 0:02:08]} 9. Nbd2 {[%clk 0:02:10]}  Ng6 {[%clk 0:02:07]} 10. Bg3 {[%clk 0:02:00]}  Be7 {[%clk 0:01:50]} 11. O-O {[%clk 0:01:53]}  O-O {[%clk 0:01:49]} 12. Bxc6 {[%clk 0:01:52]}  bxc6 {[%clk 0:01:44]} 13. c3 {[%clk 0:01:45]}  a5 {[%clk 0:01:41]} 14. a3 {[%clk 0:01:30]}  Rfb8 {[%clk 0:01:37]} 15. h3 {[%clk 0:01:27]}  Bf5 {[%clk 0:01:28]} 16. Nd4 {[%clk 0:01:24]}  Bd3 {[%clk 0:01:26]} 17. Re1 {[%clk 0:01:22]}  Ba6 {[%clk 0:01:09]} 18. f4 {[%clk 0:01:10]}  Bh4 {[%clk 0:00:45]} 19. Bxh4 {[%clk 0:01:00]}  Nxh4 {[%clk 0:00:46]} 20. Qg4 {[%clk 0:01:00]}  Ng6 {[%clk 0:00:44]} 21. Qg3 {[%clk 0:00:52]}  Re8 {[%clk 0:00:39]} 22. h4 {[%clk 0:00:41]}  Ne7 {[%clk 0:00:33]} 23. h5 {[%clk 0:00:38]}  h6 {[%clk 0:00:33]} 24. N2b3 {[%clk 0:00:36]}  a4 {[%clk 0:00:27]} 25. Nd2 {[%clk 0:00:31]}  Kh8 {[%clk 0:00:23]} 26. Qh3 {[%clk 0:00:24]}  Qd7 {[%clk 0:00:20]} 27. g4 {[%clk 0:00:22]}  Rg8 {[%clk 0:00:20]} 28. Rad1 {[%clk 0:00:19]}  Rae8 {[%clk 0:00:19]} 29. Kh2 {[%clk 0:00:17]}  Bc8 {[%clk 0:00:18]} 30. N2f3 {[%clk 0:00:14]}  Qb7 {[%clk 0:00:16]} 31. Rg1 {[%clk 0:00:14]}  Qd7 {[%clk 0:00:16]} 32. g5 {[%clk 0:00:14]}  Nf5 {[%clk 0:00:15]} 33. Nxf5 {[%clk 0:00:14]}  exf5 {[%clk 0:00:15]} 34. Nd4 {[%clk 0:00:14]}  Rd8 {[%clk 0:00:07]} 35. Rg2 {[%clk 0:00:13]}  Rde8 {[%clk 0:00:07]} 36. Rdg1 {[%clk 0:00:13]}  Rd8 {[%clk 0:00:07]} 37. gxh6 {[%clk 0:00:13]}  gxh6 {[%clk 0:00:08]} 38. Rxg8+ {[%clk 0:00:12]}  Rxg8 {[%clk 0:00:09]} 39. Rxg8+ {[%clk 0:00:11]}  Kxg8 {[%clk 0:00:09]} 40. Qh4 {[%clk 0:00:12]}  Kh7 {[%clk 0:00:06]} 41. Qf6 {[%clk 0:00:12]}  Qe8 {[%clk 0:00:05]} 42. Nxc6 {[%clk 0:00:11]}  Bd7 {[%clk 0:00:04]} 43. Nd4 {[%clk 0:00:10]}  Qg8 {[%clk 0:00:03]} 44. Nxf5 {[%clk 0:00:09]}  Bxf5 {[%clk 0:00:02]} 45. Qxf5+ {[%clk 0:00:10]}  Kh8 {[%clk 0:00:03]} 46. Qf6+ {[%clk 0:00:08]}  Qg7 {[%clk 0:00:03]} 47. Qxg7+ {[%clk 0:00:08]}  Kxg7 {[%clk 0:00:04]} 48. c6 {[%clk 0:00:08]} 1-0


[Site "https://www.chess.com"]

[Event "Titled Tuesday Blitz February 21 Early 2023"]
[White "Buganca, Luiz Henrique Da Silva"]
[Black "Ricaurte Lopez, Juan Carlos"]
[WhiteFideId "2182289"]
[BlackFideId "3600327"]
[WhiteElo "1920"]
[BlackElo "2226"]
[Result "1-0"]
[Round "07"]
[TimeControl "180+2"]
[Date "2023.02.21"]
[WhiteClock "0:00:57"]
[BlackClock "0:00:03"]

1. d4 {[%clk 0:03:00]}  d5 {[%clk 0:02:58]} 2. c4 {[%clk 0:03:01]}  e5 {[%clk 0:02:56]} 3. dxe5 {[%clk 0:03:01]}  d4 {[%clk 0:02:55]} 4. Nf3 {[%clk 0:03:01]}  Nc6 {[%clk 0:02:54]} 5. Nbd2 {[%clk 0:03:01]}  Bg4 {[%clk 0:02:50]} 6. h3 {[%clk 0:03:00]}  Bh5 {[%clk 0:02:49]} 7. g4 {[%clk 0:03:00]}  Bg6 {[%clk 0:02:48]} 8. Bg2 {[%clk 0:03:01]}  Qd7 {[%clk 0:02:44]} 9. Qb3 {[%clk 0:02:59]}  O-O-O {[%clk 0:02:35]} 10. O-O {[%clk 0:02:50]}  h5 {[%clk 0:02:29]} 11. g5 {[%clk 0:02:49]}  f6 {[%clk 0:02:27]} 12. exf6 {[%clk 0:02:47]}  gxf6 {[%clk 0:02:25]} 13. a4 {[%clk 0:02:38]}  Re8 {[%clk 0:02:08]} 14. a5 {[%clk 0:02:35]}  a6 {[%clk 0:02:06]} 15. Re1 {[%clk 0:02:30]}  fxg5 {[%clk 0:02:00]} 16. Nxg5 {[%clk 0:02:28]}  Nf6 {[%clk 0:01:59]} 17. e4 {[%clk 0:02:21]}  dxe3 {[%clk 0:01:53]} 18. Rxe3 {[%clk 0:02:19]}  Bc5 {[%clk 0:01:46]} 19. Rxe8+ {[%clk 0:02:16]}  Rxe8 {[%clk 0:01:45]} 20. Ndf3 {[%clk 0:02:16]}  Re2 {[%clk 0:01:19]} 21. Be3 {[%clk 0:02:10]}  Bxe3 {[%clk 0:01:13]} 22. fxe3 {[%clk 0:02:11]}  Ne4 {[%clk 0:01:09]} 23. Qd1 {[%clk 0:01:52]}  Rxb2 {[%clk 0:01:02]} 24. Qxd7+ {[%clk 0:01:50]}  Kxd7 {[%clk 0:01:02]} 25. Nh4 {[%clk 0:01:41]}  Nxg5 {[%clk 0:00:50]} 26. Nxg6 {[%clk 0:01:41]}  Re2 {[%clk 0:00:38]} 27. Rd1+ {[%clk 0:01:38]}  Ke8 {[%clk 0:00:29]} 28. h4 {[%clk 0:01:31]}  Nf7 {[%clk 0:00:19]} 29. Rb1 {[%clk 0:01:27]}  Nxa5 {[%clk 0:00:15]} 30. c5 {[%clk 0:01:14]}  Rxe3 {[%clk 0:00:13]} 31. Nf4 {[%clk 0:01:11]}  Rc3 {[%clk 0:00:12]} 32. Ne6 {[%clk 0:01:06]}  Kd7 {[%clk 0:00:10]} 33. Nf8+ {[%clk 0:01:05]}  Ke7 {[%clk 0:00:09]} 34. Ng6+ {[%clk 0:01:05]}  Kf6 {[%clk 0:00:09]} 35. Nf8 {[%clk 0:01:04]}  Ne5 {[%clk 0:00:08]} 36. Rf1+ {[%clk 0:01:01]}  Ke7 {[%clk 0:00:07]} 37. Nh7 {[%clk 0:00:56]}  Rxc5 {[%clk 0:00:05]} 38. Nf6 {[%clk 0:00:57]}  Nac6 {[%clk 0:00:03]} 39. Nxh5 {[%clk 0:00:57]} 1-0


[Site "https://www.chess.com"]

[Event "Titled Tuesday Blitz February 21 Early 2023"]
[White "Jaivardhan Raj"]
[Black "Kotepalli, Sai Nirupama"]
[WhiteFideId "25744437"]
[BlackFideId "5039444"]
[WhiteElo "1901"]
[BlackElo "1910"]
[Result "0-1"]
[Round "07"]
[TimeControl "180+2"]
[Date "2023.02.21"]
[WhiteClock "0:00:02"]
[BlackClock "0:00:02"]

1. e4 {[%clk 0:02:59]}  c5 {[%clk 0:02:55]} 2. Nf3 {[%clk 0:02:58]}  e6 {[%clk 0:02:49]} 3. d4 {[%clk 0:02:57]}  cxd4 {[%clk 0:02:44]} 4. Nxd4 {[%clk 0:02:56]}  Nf6 {[%clk 0:02:37]} 5. Nc3 {[%clk 0:02:40]}  Nc6 {[%clk 0:02:31]} 6. Ndb5 {[%clk 0:02:36]}  Bb4 {[%clk 0:02:29]} 7. a3 {[%clk 0:02:35]}  Bxc3+ {[%clk 0:02:24]} 8. Nxc3 {[%clk 0:02:36]}  d5 {[%clk 0:02:22]} 9. exd5 {[%clk 0:02:32]}  exd5 {[%clk 0:02:23]} 10. Qe2+ {[%clk 0:02:33]}  Be6 {[%clk 0:02:20]} 11. Bg5 {[%clk 0:02:29]}  d4 {[%clk 0:02:05]} 12. Ne4 {[%clk 0:02:26]}  Qa5+ {[%clk 0:02:00]} 13. Bd2 {[%clk 0:02:11]}  Qe5 {[%clk 0:01:57]} 14. Nxf6+ {[%clk 0:01:58]}  Qxf6 {[%clk 0:01:56]} 15. Qb5 {[%clk 0:01:50]}  O-O {[%clk 0:01:36]} 16. Bd3 {[%clk 0:01:45]}  a6 {[%clk 0:01:24]} 17. Qh5 {[%clk 0:01:39]}  Qe5+ {[%clk 0:01:17]} 18. Qxe5 {[%clk 0:01:32]}  Nxe5 {[%clk 0:01:18]} 19. Be4 {[%clk 0:01:29]}  Nc6 {[%clk 0:01:08]} 20. O-O {[%clk 0:01:27]}  Rfe8 {[%clk 0:01:05]} 21. Bf3 {[%clk 0:01:22]}  Rac8 {[%clk 0:01:00]} 22. c3 {[%clk 0:01:11]}  Bc4 {[%clk 0:00:49]} 23. Rfe1 {[%clk 0:01:06]}  d3 {[%clk 0:00:45]} 24. a4 {[%clk 0:01:01]}  Re6 {[%clk 0:00:35]} 25. Rxe6 {[%clk 0:00:57]}  fxe6 {[%clk 0:00:34]} 26. Re1 {[%clk 0:00:55]}  Kf7 {[%clk 0:00:25]} 27. b4 {[%clk 0:00:46]}  Rc7 {[%clk 0:00:18]} 28. Re4 {[%clk 0:00:31]}  Bb3 {[%clk 0:00:16]} 29. a5 {[%clk 0:00:26]}  e5 {[%clk 0:00:15]} 30. Rh4 {[%clk 0:00:16]}  h6 {[%clk 0:00:13]} 31. Bh5+ {[%clk 0:00:15]}  Kf6 {[%clk 0:00:13]} 32. Rg4 {[%clk 0:00:14]}  Bd1 {[%clk 0:00:11]} 33. Rg6+ {[%clk 0:00:12]}  Kf5 {[%clk 0:00:10]} 34. g4+ {[%clk 0:00:11]}  Ke4 {[%clk 0:00:11]} 35. Kg2 {[%clk 0:00:10]}  Bf3+ {[%clk 0:00:10]} 36. Kg3 {[%clk 0:00:10]}  Be2 {[%clk 0:00:09]} 37. Rd6 {[%clk 0:00:10]}  Ne7 {[%clk 0:00:08]} 38. h4 {[%clk 0:00:07]}  Rc6 {[%clk 0:00:08]} 39. Rd7 {[%clk 0:00:06]}  Re6 {[%clk 0:00:06]} 40. Rxe7 {[%clk 0:00:03]}  Rxe7 {[%clk 0:00:06]} 41. c4 {[%clk 0:00:03]}  Kd4 {[%clk 0:00:06]} 42. Be3+ {[%clk 0:00:02]}  Kxc4 {[%clk 0:00:06]} 43. Bd2 {[%clk 0:00:02]}  Kb3 {[%clk 0:00:06]} 44. Bg6 {[%clk 0:00:03]}  Kc2 {[%clk 0:00:06]} 45. Be3 {[%clk 0:00:03]}  e4 {[%clk 0:00:06]} 46. Bc5 {[%clk 0:00:02]}  d2 {[%clk 0:00:05]} 47. Bxe7 {[%clk 0:00:02]}  d1=Q {[%clk 0:00:05]} 48. Bxe4+ {[%clk 0:00:02]}  Bd3 {[%clk 0:00:05]} 49. Bxd3+ {[%clk 0:00:03]}  Qxd3+ {[%clk 0:00:05]} 50. f3 {[%clk 0:00:03]}  Qe3 {[%clk 0:00:04]} 51. Bc5 {[%clk 0:00:03]}  Qe1+ {[%clk 0:00:04]} 52. Kg2 {[%clk 0:00:03]}  Kd3 {[%clk 0:00:04]} 53. g5 {[%clk 0:00:03]}  hxg5 {[%clk 0:00:02]} 54. hxg5 {[%clk 0:00:04]}  Ke2 {[%clk 0:00:02]} 55. f4 {[%clk 0:00:02]}  Qf1+ {[%clk 0:00:02]} 56. Kg3 {[%clk 0:00:03]}  Qf3+ {[%clk 0:00:03]} 57. Kh4 {[%clk 0:00:02]}  Qxf4+ {[%clk 0:00:02]} 58. Kh5 {[%clk 0:00:02]}  Qf5 {[%clk 0:00:02]} 0-1


[Site "https://www.chess.com"]

[Event "Titled Tuesday Blitz February 21 Early 2023"]
[White "Da Silva Borges, Rodrigo"]
[Black "Calcada, Lucas Galvan"]
[WhiteFideId "2115778"]
[BlackFideId "22746099"]
[WhiteElo "2199"]
[BlackElo "1739"]
[Result "1-0"]
[Round "07"]
[TimeControl "180+2"]
[Date "2023.02.21"]
[WhiteClock "0:00:16"]
[BlackClock "0:00:01"]

1. e4 {[%clk 0:03:00]}  c5 {[%clk 0:02:59]} 2. Nf3 {[%clk 0:03:00]}  d6 {[%clk 0:02:56]} 3. d4 {[%clk 0:03:00]}  cxd4 {[%clk 0:02:57]} 4. Nxd4 {[%clk 0:03:01]}  Nf6 {[%clk 0:02:56]} 5. Nc3 {[%clk 0:03:01]}  a6 {[%clk 0:02:57]} 6. Be3 {[%clk 0:03:01]}  e6 {[%clk 0:02:56]} 7. Be2 {[%clk 0:02:58]}  Qc7 {[%clk 0:02:54]} 8. O-O {[%clk 0:02:58]}  Nbd7 {[%clk 0:02:54]} 9. f4 {[%clk 0:02:57]}  Be7 {[%clk 0:02:52]} 10. a4 {[%clk 0:02:54]}  O-O {[%clk 0:02:48]} 11. Bf3 {[%clk 0:02:51]}  Nc5 {[%clk 0:02:39]} 12. Qe2 {[%clk 0:02:48]}  Rb8 {[%clk 0:02:30]} 13. g4 {[%clk 0:02:44]}  Bd7 {[%clk 0:02:19]} 14. g5 {[%clk 0:02:44]}  Ne8 {[%clk 0:02:17]} 15. Kh1 {[%clk 0:02:40]}  Bc6 {[%clk 0:02:15]} 16. Bg2 {[%clk 0:02:39]}  b5 {[%clk 0:02:04]} 17. Nxc6 {[%clk 0:02:39]}  Qxc6 {[%clk 0:02:02]} 18. axb5 {[%clk 0:02:39]}  axb5 {[%clk 0:02:00]} 19. e5 {[%clk 0:02:40]}  d5 {[%clk 0:02:00]} 20. f5 {[%clk 0:02:26]}  exf5 {[%clk 0:01:57]} 21. Nxd5 {[%clk 0:02:24]}  Qe6 {[%clk 0:01:54]} 22. Nxe7+ {[%clk 0:01:39]}  Qxe7 {[%clk 0:01:55]} 23. Rxf5 {[%clk 0:01:33]}  Ne6 {[%clk 0:01:43]} 24. Ra7 {[%clk 0:01:28]}  Qb4 {[%clk 0:01:36]} 25. Qf2 {[%clk 0:01:20]}  N8c7 {[%clk 0:01:29]} 26. b3 {[%clk 0:01:12]}  Qc3 {[%clk 0:01:17]} 27. h4 {[%clk 0:01:02]}  Rbd8 {[%clk 0:01:08]} 28. h5 {[%clk 0:00:58]}  Rd1+ {[%clk 0:01:06]} 29. Kh2 {[%clk 0:00:59]}  g6 {[%clk 0:01:05]} 30. hxg6 {[%clk 0:00:58]}  hxg6 {[%clk 0:01:05]} 31. Rf6 {[%clk 0:00:42]}  Qxe5+ {[%clk 0:01:03]} 32. Qg3 {[%clk 0:00:43]}  Qc3 {[%clk 0:00:51]} 33. Rf2 {[%clk 0:00:20]}  Kg7 {[%clk 0:00:48]} 34. Qf3 {[%clk 0:00:19]}  Rh8+ {[%clk 0:00:47]} 35. Kg3 {[%clk 0:00:19]}  Qe5+ {[%clk 0:00:45]} 36. Bf4 {[%clk 0:00:20]}  Nxf4 {[%clk 0:00:26]} 37. Qxf4 {[%clk 0:00:21]}  Qxf4+ {[%clk 0:00:19]} 38. Rxf4 {[%clk 0:00:21]}  Rd7 {[%clk 0:00:12]} 39. Bh3 {[%clk 0:00:18]}  Re7 {[%clk 0:00:10]} 40. Bf1 {[%clk 0:00:18]}  Rhe8 {[%clk 0:00:09]} 41. Bd3 {[%clk 0:00:16]}  Kg8 {[%clk 0:00:09]} 42. Kg4 {[%clk 0:00:16]}  b4 {[%clk 0:00:08]} 43. Rf6 {[%clk 0:00:16]}  Ne6 {[%clk 0:00:08]} 44. Bc4 {[%clk 0:00:16]}  Rxa7 {[%clk 0:00:07]} 45. Bxe6 {[%clk 0:00:17]}  Rxe6 {[%clk 0:00:08]} 46. Rf4 {[%clk 0:00:18]}  Rc7 {[%clk 0:00:05]} 47. Rxb4 {[%clk 0:00:16]}  Rxc2 {[%clk 0:00:06]} 48. Rb8+ {[%clk 0:00:16]}  Kg7 {[%clk 0:00:03]} 49. Kf4 {[%clk 0:00:17]}  Rb2 {[%clk 0:00:03]} 50. b4 {[%clk 0:00:17]}  Re1 {[%clk 0:00:01]} 51. Kf3 {[%clk 0:00:17]}  Reb1 {[%clk 0:00:01]} 52. Rc8 {[%clk 0:00:16]} 1-0


[Site "https://www.chess.com"]

[Event "Titled Tuesday Blitz February 21 Early 2023"]
[White "Jesusesmifuerza"]
[Black "Kohler, Aran"]
[BlackFideId "1002856"]
[WhiteElo "2002"]
[BlackElo "2010"]
[Result "0-1"]
[Round "07"]
[TimeControl "180+2"]
[Date "2023.02.21"]
[WhiteClock "0:00:14"]
[BlackClock "0:00:28"]

1. d4 {[%clk 0:03:00]}  d5 {[%clk 0:02:59]} 2. Nc3 {[%clk 0:03:00]}  c6 {[%clk 0:02:57]} 3. Bf4 {[%clk 0:03:00]}  Nf6 {[%clk 0:02:54]} 4. e3 {[%clk 0:02:59]}  a6 {[%clk 0:02:53]} 5. Nf3 {[%clk 0:02:53]}  Bg4 {[%clk 0:02:52]} 6. Be2 {[%clk 0:02:44]}  Bxf3 {[%clk 0:02:51]} 7. Bxf3 {[%clk 0:02:43]}  e6 {[%clk 0:02:52]} 8. O-O {[%clk 0:02:42]}  c5 {[%clk 0:02:52]} 9. e4 {[%clk 0:02:33]}  cxd4 {[%clk 0:02:51]} 10. Qxd4 {[%clk 0:02:29]}  Nc6 {[%clk 0:02:51]} 11. Qd1 {[%clk 0:02:24]}  d4 {[%clk 0:02:42]} 12. e5 {[%clk 0:02:20]}  dxc3 {[%clk 0:02:41]} 13. exf6 {[%clk 0:02:19]}  cxb2 {[%clk 0:02:20]} 14. Qxd8+ {[%clk 0:02:13]}  Rxd8 {[%clk 0:02:18]} 15. Rab1 {[%clk 0:02:14]}  gxf6 {[%clk 0:02:00]} 16. Rxb2 {[%clk 0:02:10]}  Bd6 {[%clk 0:01:55]} 17. Bxd6 {[%clk 0:01:59]}  Rxd6 {[%clk 0:01:55]} 18. Rxb7 {[%clk 0:01:59]}  Nd8 {[%clk 0:01:42]} 19. Rb8 {[%clk 0:01:51]}  O-O {[%clk 0:01:41]} 20. Be4 {[%clk 0:01:44]}  f5 {[%clk 0:01:41]} 21. Bd3 {[%clk 0:01:44]}  a5 {[%clk 0:01:25]} 22. Rfb1 {[%clk 0:01:39]}  Nc6 {[%clk 0:01:24]} 23. Rxf8+ {[%clk 0:01:38]}  Kxf8 {[%clk 0:01:23]} 24. Rb6 {[%clk 0:01:38]}  Ke7 {[%clk 0:01:23]} 25. a3 {[%clk 0:01:27]}  Ne5 {[%clk 0:01:21]} 26. Rxd6 {[%clk 0:01:26]}  Kxd6 {[%clk 0:01:20]} 27. Be2 {[%clk 0:01:24]}  Kc5 {[%clk 0:01:19]} 28. Kf1 {[%clk 0:01:14]}  Kd4 {[%clk 0:01:06]} 29. f4 {[%clk 0:01:06]}  Ng6 {[%clk 0:01:04]} 30. g3 {[%clk 0:00:54]}  Kc3 {[%clk 0:01:03]} 31. Bd3 {[%clk 0:00:54]}  Ne7 {[%clk 0:00:57]} 32. Ke2 {[%clk 0:00:50]}  Nd5 {[%clk 0:00:57]} 33. h3 {[%clk 0:00:47]}  Kb2 {[%clk 0:00:56]} 34. c4 {[%clk 0:00:46]}  Nc7 {[%clk 0:00:53]} 35. Ke3 {[%clk 0:00:44]}  Kxa3 {[%clk 0:00:53]} 36. Kd4 {[%clk 0:00:44]}  Kb3 {[%clk 0:00:51]} 37. c5 {[%clk 0:00:34]}  a4 {[%clk 0:00:43]} 38. Bc4+ {[%clk 0:00:33]}  Kb4 {[%clk 0:00:39]} 39. c6 {[%clk 0:00:30]}  f6 {[%clk 0:00:38]} 40. g4 {[%clk 0:00:27]}  fxg4 {[%clk 0:00:36]} 41. hxg4 {[%clk 0:00:27]}  h6 {[%clk 0:00:37]} 42. Ba2 {[%clk 0:00:24]}  Kb5 {[%clk 0:00:34]} 43. g5 {[%clk 0:00:20]}  fxg5 {[%clk 0:00:31]} 44. fxg5 {[%clk 0:00:21]}  hxg5 {[%clk 0:00:31]} 45. Ke3 {[%clk 0:00:19]}  Kxc6 {[%clk 0:00:31]} 46. Kf3 {[%clk 0:00:20]}  Kd6 {[%clk 0:00:28]} 47. Kg4 {[%clk 0:00:21]}  Nd5 {[%clk 0:00:28]} 48. Kxg5 {[%clk 0:00:17]}  Nc3 {[%clk 0:00:28]} 49. Bc4 {[%clk 0:00:16]}  a3 {[%clk 0:00:28]} 50. Kf4 {[%clk 0:00:16]}  a2 {[%clk 0:00:28]} 51. Bxa2 {[%clk 0:00:15]}  Nxa2 {[%clk 0:00:28]} 52. Ke3 {[%clk 0:00:15]}  Nb4 {[%clk 0:00:29]} 53. Kd4 {[%clk 0:00:15]}  e5+ {[%clk 0:00:28]} 54. Ke4 {[%clk 0:00:15]}  Nd5 {[%clk 0:00:28]} 55. Kf5 {[%clk 0:00:15]}  Nc3 {[%clk 0:00:27]} 56. Kg4 {[%clk 0:00:14]}  Kd5 {[%clk 0:00:27]} 57. Kf3 {[%clk 0:00:15]}  Kd4 {[%clk 0:00:28]} 58. Kf2 {[%clk 0:00:15]}  Kd3 {[%clk 0:00:28]} 59. Ke1 {[%clk 0:00:15]}  e4 {[%clk 0:00:28]} 60. Kf2 {[%clk 0:00:14]}  Kd2 {[%clk 0:00:28]} 0-1


[Site "https://www.chess.com"]

[Event "Titled Tuesday Blitz February 21 Early 2023"]
[White "Dias, Joao Batista"]
[Black "Burke, John F"]
[WhiteFideId "2108240"]
[BlackFideId "2052970"]
[WhiteElo "1796"]
[BlackElo "2013"]
[Result "1/2-1/2"]
[Round "07"]
[TimeControl "180+2"]
[Date "2023.02.21"]
[WhiteClock "0:00:14"]
[BlackClock "0:00:21"]

1. e4 {[%clk 0:03:00]}  c5 {[%clk 0:02:59]} 2. Nf3 {[%clk 0:02:59]}  Nc6 {[%clk 0:02:59]} 3. d4 {[%clk 0:02:59]}  cxd4 {[%clk 0:02:59]} 4. Nxd4 {[%clk 0:02:59]}  e6 {[%clk 0:03:00]} 5. Nxc6 {[%clk 0:02:58]}  dxc6 {[%clk 0:03:00]} 6. Bd3 {[%clk 0:02:59]}  Bc5 {[%clk 0:02:55]} 7. O-O {[%clk 0:02:59]}  Nf6 {[%clk 0:02:54]} 8. Qe2 {[%clk 0:02:59]}  O-O {[%clk 0:02:54]} 9. Be3 {[%clk 0:02:59]}  Qb6 {[%clk 0:02:52]} 10. Bxc5 {[%clk 0:02:58]}  Qxc5 {[%clk 0:02:52]} 11. Nd2 {[%clk 0:02:57]}  e5 {[%clk 0:02:51]} 12. Nc4 {[%clk 0:02:56]}  Be6 {[%clk 0:02:47]} 13. Ne3 {[%clk 0:02:52]}  g6 {[%clk 0:02:37]} 14. a3 {[%clk 0:02:51]}  Kg7 {[%clk 0:02:37]} 15. h3 {[%clk 0:02:48]}  Rad8 {[%clk 0:02:36]} 16. Kh1 {[%clk 0:02:42]}  b5 {[%clk 0:02:34]} 17. Kh2 {[%clk 0:02:34]}  h5 {[%clk 0:02:25]} 18. Rac1 {[%clk 0:02:31]}  a5 {[%clk 0:02:20]} 19. Ra1 {[%clk 0:02:29]}  Rh8 {[%clk 0:02:16]} 20. Rac1 {[%clk 0:02:26]}  Rd4 {[%clk 0:02:12]} 21. Rfd1 {[%clk 0:02:24]}  Nxe4 {[%clk 0:02:01]} 22. c3 {[%clk 0:02:23]}  Rxd3 {[%clk 0:02:02]} 23. Rxd3 {[%clk 0:02:22]}  f5 {[%clk 0:02:00]} 24. f3 {[%clk 0:02:20]}  Nf6 {[%clk 0:01:58]} 25. Rcd1 {[%clk 0:02:16]}  Re8 {[%clk 0:01:55]} 26. Nc2 {[%clk 0:02:12]}  Bc4 {[%clk 0:01:54]} 27. b4 {[%clk 0:01:45]}  Bxd3 {[%clk 0:01:33]} 28. Qxd3 {[%clk 0:01:42]}  axb4 {[%clk 0:01:27]} 29. axb4 {[%clk 0:01:41]}  Qe7 {[%clk 0:01:27]} 30. Ra1 {[%clk 0:01:37]}  e4 {[%clk 0:01:27]} 31. Qe3 {[%clk 0:01:36]}  Qd6+ {[%clk 0:01:20]} 32. f4 {[%clk 0:01:33]}  Qd3 {[%clk 0:01:20]} 33. Ra7+ {[%clk 0:01:29]}  Kh6 {[%clk 0:01:19]} 34. Qd4 {[%clk 0:00:48]}  Qxd4 {[%clk 0:01:11]} 35. Nxd4 {[%clk 0:00:48]}  e3 {[%clk 0:01:11]} 36. Ne2 {[%clk 0:00:48]}  Rd8 {[%clk 0:01:01]} 37. Kg3 {[%clk 0:00:48]}  Rd2 {[%clk 0:00:59]} 38. Kf3 {[%clk 0:00:48]}  Nd5 {[%clk 0:01:00]} 39. Ra6 {[%clk 0:00:45]}  c5 {[%clk 0:00:41]} 40. bxc5 {[%clk 0:00:42]}  b4 {[%clk 0:00:41]} 41. cxb4 {[%clk 0:00:41]}  Nxb4 {[%clk 0:00:42]} 42. Re6 {[%clk 0:00:36]}  Nd5 {[%clk 0:00:38]} 43. Rd6 {[%clk 0:00:30]}  Kg7 {[%clk 0:00:30]} 44. c6 {[%clk 0:00:25]}  Kf7 {[%clk 0:00:28]} 45. Rd7+ {[%clk 0:00:25]}  Ke6 {[%clk 0:00:28]} 46. Rg7 {[%clk 0:00:24]}  Kf6 {[%clk 0:00:27]} 47. Rb7 {[%clk 0:00:21]}  Rc2 {[%clk 0:00:26]} 48. Rd7 {[%clk 0:00:19]}  Ke6 {[%clk 0:00:24]} 49. Rg7 {[%clk 0:00:18]}  Kf6 {[%clk 0:00:23]} 50. Rd7 {[%clk 0:00:17]}  Nc3 {[%clk 0:00:22]} 51. c7 {[%clk 0:00:17]}  Nxe2 {[%clk 0:00:22]} 52. Kxe3 {[%clk 0:00:15]}  Ng1 {[%clk 0:00:20]} 53. Rd1 {[%clk 0:00:13]}  Ne2 {[%clk 0:00:19]} 54. Rd2 {[%clk 0:00:12]}  Rxc7 {[%clk 0:00:19]} 55. Rxe2 {[%clk 0:00:12]}  Re7+ {[%clk 0:00:19]} 56. Kf2 {[%clk 0:00:13]}  Rxe2+ {[%clk 0:00:20]} 57. Kxe2 {[%clk 0:00:13]}  Ke6 {[%clk 0:00:19]} 58. Ke3 {[%clk 0:00:13]}  Kd5 {[%clk 0:00:20]} 59. Kd3 {[%clk 0:00:14]}  Kc5 {[%clk 0:00:20]} 60. g3 {[%clk 0:00:13]}  Kd5 {[%clk 0:00:19]} 61. h4 {[%clk 0:00:12]}  Kc5 {[%clk 0:00:19]} 62. Kc3 {[%clk 0:00:13]}  Kd5 {[%clk 0:00:20]} 63. Kd3 {[%clk 0:00:13]}  Kc5 {[%clk 0:00:20]} 64. Kc3 {[%clk 0:00:14]}  Kd5 {[%clk 0:00:21]} 65. Kd3 {[%clk 0:00:14]} 1/2-1/2


[Site "https://www.chess.com"]

[Event "Titled Tuesday Blitz February 21 Early 2023"]
[White "Thomas, Anysia"]
[Black "Wickramasinghe, Minethma Lasandi"]
[WhiteFideId "670472"]
[BlackFideId "9966170"]
[WhiteElo "2147"]
[BlackElo "1483"]
[Result "1-0"]
[Round "07"]
[TimeControl "180+2"]
[Date "2023.02.21"]
[WhiteClock "0:00:48"]
[BlackClock "0:00:01"]

1. d4 {[%clk 0:03:00]}  Nf6 {[%clk 0:02:58]} 2. c4 {[%clk 0:02:56]}  e6 {[%clk 0:02:58]} 3. Nf3 {[%clk 0:02:56]}  Bb4+ {[%clk 0:02:57]} 4. Nbd2 {[%clk 0:02:56]}  O-O {[%clk 0:02:55]} 5. a3 {[%clk 0:02:54]}  Bxd2+ {[%clk 0:02:52]} 6. Qxd2 {[%clk 0:02:54]}  d5 {[%clk 0:02:52]} 7. e3 {[%clk 0:02:53]}  Nbd7 {[%clk 0:02:50]} 8. b4 {[%clk 0:02:43]}  a5 {[%clk 0:02:49]} 9. Bb2 {[%clk 0:02:44]}  Ne4 {[%clk 0:02:39]} 10. Qc2 {[%clk 0:02:42]}  Qe7 {[%clk 0:02:35]} 11. c5 {[%clk 0:02:36]}  c6 {[%clk 0:02:21]} 12. Bd3 {[%clk 0:02:35]}  Ng5 {[%clk 0:02:19]} 13. Nxg5 {[%clk 0:02:30]}  Qxg5 {[%clk 0:02:19]} 14. O-O {[%clk 0:02:24]}  h5 {[%clk 0:02:09]} 15. f4 {[%clk 0:02:23]}  Qe7 {[%clk 0:01:55]} 16. Qe2 {[%clk 0:02:15]}  g6 {[%clk 0:01:33]} 17. Rf3 {[%clk 0:02:09]}  Kg7 {[%clk 0:01:32]} 18. Rh3 {[%clk 0:02:03]}  Rh8 {[%clk 0:01:30]} 19. g4 {[%clk 0:02:01]}  hxg4 {[%clk 0:01:22]} 20. Rxh8 {[%clk 0:01:58]}  Kxh8 {[%clk 0:01:22]} 21. Qxg4 {[%clk 0:01:58]}  Nf6 {[%clk 0:01:20]} 22. Qh4+ {[%clk 0:01:55]}  Kg7 {[%clk 0:01:20]} 23. e4 {[%clk 0:01:38]}  dxe4 {[%clk 0:01:10]} 24. Bxe4 {[%clk 0:01:36]}  Nd5 {[%clk 0:00:58]} 25. Qxe7 {[%clk 0:01:27]}  Nxe7 {[%clk 0:00:58]} 26. d5+ {[%clk 0:01:28]}  f6 {[%clk 0:00:41]} 27. d6 {[%clk 0:01:23]}  Nd5 {[%clk 0:00:42]} 28. Bxd5 {[%clk 0:01:08]}  cxd5 {[%clk 0:00:33]} 29. b5 {[%clk 0:00:59]}  Bd7 {[%clk 0:00:28]} 30. a4 {[%clk 0:00:58]}  Rc8 {[%clk 0:00:11]} 31. Rc1 {[%clk 0:00:55]}  Kf7 {[%clk 0:00:09]} 32. Bd4 {[%clk 0:00:51]}  b6 {[%clk 0:00:07]} 33. c6 {[%clk 0:00:50]}  Ke8 {[%clk 0:00:01]} 34. Bxb6 {[%clk 0:00:48]} 1-0


[Site "https://www.chess.com"]